bitfinex-derivatives/quotes_ETHF0:USTF0_20250910
["timestamp","ask_amount","ask_price","bid_price","bid_amount"]
[1757512261317,0.2261,4421.2,4420.4,0.429]
[1757512261612,3.6797,4420.8,4419.8,0.715]
[1757512261808,3.6797,4420.8,4419.8,0.286]
[1757512262312,3.6797,4420.8,4419.8,0.715]
[1757512262508,0.4719,4420.8,4420.4,3.2078]
[1757512262700,0.2261,4421.2,4420.4,3.2078]
[1757512262906,3.2078,4420.9,4420.2,0.286]
[1757512263209,0.4719,4420.8,4419.8,3.2078]
[1757512263508,0.4719,4419.8,4417.8,3.6368]
[1757512263705,3.6797,4419.0,4417.8,3.6368]
[1757512264108,3.2078,4418.4,4417.8,3.6368]
[1757512264416,3.2078,4418.4,4417.8,0.429]
[1757512264712,3.2078,4419.9,4417.8,7.2078]
[1757512265010,3.2078,4419.8,4418.8,3.2078]
[1757512265211,3.2078,4419.8,4418.9,0.429]
[1757512265607,3.2078,4419.8,4419.0,2.94826699]
[1757512265809,3.2078,4420.4,4419.5,0.429]
[1757512266709,3.2078,4419.9,4418.9,3.2078]
[1757512267018,3.6797,4419.7,4418.3,0.429]
[1757512267316,0.4719,4418.4,4417.3,0.429]
[1757512267511,3.2078,4417.5,4416.7,0.429]
[1757512267812,3.2078,4417.5,4416.0,0.1823]
[1757512267813,3.2078,4416.8,4416.1,0.429]
[1757512268510,0.4719,4417.9,4416.2,2.99234032]
[1757512268711,0.79864145,4417.8,4416.3,0.429]
[1757512268917,0.79864145,4417.7,4416.4,0.429]
[1757512269109,0.79864145,4417.7,4415.4,1.01894]
[1757512269110,0.4719,4416.7,4414.2,0.18409966]
[1757512269309,3.2078,4414.7,4413.4,0.429]
[1757512269515,0.4719,4415.6,4413.4,3.6368]
[1757512269516,3.2078,4414.5,4413.4,3.6368]
[1757512269716,3.2078,4413.9,4413.0,0.429]
[1757512270016,3.2078,4413.7,4413.1,0.296]
[1757512270408,3.2078,4413.7,4413.2,3.29174237]
[1757512270608,3.2078,4413.5,4413.3,0.429]
[1757512270805,3.2078,4413.5,4413.4,0.296]
[1757512271011,3.2078,4413.5,4413.4,0.725]
[1757512271213,0.4719,4414.1,4413.4,0.725]
[1757512271214,3.2078,4414.1,4413.4,7.72074237]
[1757512271414,3.2078,4414.1,4413.4,3.72074237]
[1757512271807,3.2078,4414.1,4413.6,0.1823]
[1757512272015,0.2265,4414.4,4413.7,0.429]
[1757512272219,0.2265,4414.4,4413.8,0.429]
[1757512272413,0.2265,4414.4,4413.8,0.725]
[1757512272617,3.2078,4414.7,4414.0,0.429]
[1757512272819,3.2078,4415.2,4414.7,0.40764]
[1757512273025,3.2078,4415.2,4414.9,0.40762]
[1757512273314,3.2078,4415.2,4415.0,3.00428667]
[1757512273515,3.2078,4415.2,4415.1,1.1326]
[1757512273723,0.2257,4415.5,4415.4,0.429]
[1757512274110,0.4719,4416.9,4415.9,0.5261]
[1757512274111,3.2078,4416.6,4415.9,0.5261]
[1757512274313,3.2078,4416.6,4416.0,0.295]
[1757512274514,3.2078,4416.6,4416.5,0.5261]
[1757512274715,3.2078,4417.2,4416.5,0.295]
[1757512274925,3.4181,4417.2,4416.6,0.40746]
[1757512275120,3.4181,4417.2,4416.5,2.99487179]
[1757512275323,3.4181,4417.2,4416.7,2.99487179]
[1757512275524,3.4181,4417.2,4416.6,0.295]
[1757512275821,3.4181,4417.2,4416.7,2.9654383]
[1757512276017,0.5294,4417.1,4416.7,2.9654383]
[1757512276321,3.4181,4417.2,4415.9,0.294]
[1757512276322,0.2103,4416.3,4415.9,0.294]
[1757512276511,0.5294,4416.2,4415.9,0.294]
[1757512276717,0.5294,4416.2,4416.0,2.93825914]
[1757512276912,0.2103,4416.3,4416.0,2.93825914]
[1757512277221,0.5294,4417.1,4416.3,0.40749]
[1757512277520,0.2103,4419.9,4416.6,3.2078]
[1757512277521,3.2078,4418.4,4416.6,3.2078]
[1757512277727,3.2078,4418.4,4417.6,0.40737]
[1757512277916,3.2078,4418.4,4417.1,3.2078]
[1757512277917,3.2078,4418.4,4417.7,0.295]
[1757512278117,3.2078,4419.1,4417.8,0.40736]
[1757512278426,3.2078,4419.1,4417.9,2.94344741]
[1757512278818,3.2078,4419.1,4418.0,0.295]
[1757512279118,3.2078,4419.1,4418.0,3.23844741]
[1757512279419,3.2078,4419.6,4418.3,0.4073]
[1757512279618,3.2078,4419.6,4418.4,3.9091]
[1757512279819,0.5294,4418.9,4418.6,0.40728]
[1757512280019,3.2078,4419.6,4418.6,0.40728]
[1757512280220,0.5294,4418.9,4418.7,3.24192148]
[1757512280418,0.5294,4418.9,4418.8,0.294]
[1757512280722,0.5294,4418.9,4418.8,7.27984201]
[1757512281017,0.5294,4418.9,4417.3,0.5261]
[1757512281018,4.5294,4418.9,4417.3,0.5261]
[1757512281219,3.2078,4418.0,4417.3,0.5261]
[1757512281621,3.2078,4418.0,4417.4,0.296]
[1757512281819,3.2078,4418.0,4417.3,0.5261]
[1757512282019,3.2078,4418.0,4417.4,0.296]
[1757512282221,3.2078,4418.0,4417.5,0.296]
[1757512282426,3.5638,4418.0,4417.5,0.296]
[1757512282617,3.5638,4418.0,4417.3,0.5261]
[1757512283121,3.5638,4418.0,4417.4,0.295]
[1757512283420,3.5638,4418.0,4417.3,0.5261]
[1757512283822,3.2078,4417.5,4416.6,0.5261]
[1757512284026,4.356,4418.0,4416.6,0.5261]
[1757512284027,3.2078,4417.2,4416.6,0.5261]
[1757512284318,3.2078,4417.4,4416.8,0.5261]
[1757512285117,3.2078,4418.1,4416.9,2.89358983]
[1757512285315,3.2078,4418.1,4417.0,0.5261]
[1757512285621,3.2078,4418.3,4417.1,2.95968531]
[1757512285827,3.2078,4419.1,4418.0,0.40734]
[1757512286029,3.2078,4419.1,4418.1,0.294]
[1757512286328,3.2078,4418.6,4418.1,0.294]
[1757512286519,3.2078,4419.1,4418.2,0.294]
[1757512287520,0.356,4419.3,4418.3,3.2078]
[1757512287729,0.356,4420.0,4418.9,3.2078]
[1757512287924,3.2078,4419.6,4419.0,0.293]
[1757512288224,3.2078,4419.6,4418.9,4.14115]
[1757512288423,0.356,4420.0,4419.0,0.293]
[1757512288621,3.2078,4420.1,4419.1,0.293]
[1757512288923,3.2078,4420.1,4419.0,2.91288738]
[1757512289225,3.2078,4420.1,4419.4,0.5261]
[1757512289431,0.356,4420.6,4419.4,0.5261]
[1757512289432,3.2078,4420.6,4419.6,0.40719]
[1757512289729,3.2078,4420.6,4419.1,0.4852]
[1757512289730,0.356,4422.3,4420.5,3.4]
[1757512289934,3.5638,4422.3,4421.0,3.2078]
[1757512290122,3.2078,4421.8,4421.0,3.2078]
[1757512290623,3.2078,4421.8,4421.2,0.5261]
[1757512290820,3.2078,4421.3,4419.1,3.4]
[1757512291021,3.2078,4420.1,4419.1,0.1922]
[1757512291327,32.896,4420.0,4417.6,0.1922]
[1757512291626,33.4046347,4419.9,4417.6,0.1922]
[1757512291825,33.4046347,4419.8,4417.6,0.1922]
[1757512292123,3.2078,4418.4,4417.6,0.1922]
[1757512292831,3.2078,4418.4,4417.7,0.5261]
[1757512293029,3.2078,4418.9,4418.2,0.5261]
[1757512293229,205.90266885,4423.0,4419.1,0.5261]
[1757512293230,3.2078,4419.5,4419.1,0.5261]
[1757512293426,204.263,4423.0,4419.1,0.5261]
[1757512293427,3.2078,4420.1,4419.1,0.5261]
[1757512293632,3.2078,4420.1,4419.9,0.1922]
[1757512293824,3.2078,4420.6,4420.0,0.5261]
[1757512294228,3.2078,4420.6,4420.1,0.294]
[1757512294434,3.2078,4420.6,4420.0,0.5261]
[1757512294727,3.2078,4420.6,4420.2,0.5261]
[1757512294927,3.2078,4420.6,4420.1,0.294]
[1757512295123,3.2078,4420.6,4420.0,0.5261]
[1757512295524,3.2078,4420.6,4419.9,0.1922]
[1757512295525,3.2078,4420.1,4419.9,0.1922]
[1757512295836,3.2078,4420.6,4420.0,0.5261]
[1757512297631,0.294,4421.0,4420.0,0.5261]
[1757512297632,3.2078,4420.1,4420.0,0.5261]
[1757512298133,3.2078,4420.1,4419.0,0.7183]
[1757512298134,7.2078,4420.1,4419.0,0.7183]
[1757512298337,3.2078,4419.1,4419.0,0.7183]
[1757512301033,3.4998,4419.1,4419.0,0.7183]
[1757512302134,3.4998,4419.1,4419.0,0.1922]
[1757512302741,7.4998,4419.1,4419.0,0.1922]
[1757512303239,7.4998,4419.1,4419.0,0.7183]
[1757512303434,3.2078,4419.1,4419.0,0.7183]
[1757512303630,3.2078,4419.6,4419.1,0.5261]
[1757512304141,3.4988,4419.6,4419.1,0.5261]
[1757512304735,3.2078,4419.6,4419.1,0.5261]
[1757512304930,3.2078,4419.6,4419.1,0.5583]
[1757512305333,0.291,4419.5,4419.1,0.5583]
[1757512305531,0.291,4419.5,4419.0,0.1922]
[1757512305841,3.2078,4419.1,4419.0,0.7505]
[1757512306733,0.291,4419.2,4419.0,0.1922]
[1757512307039,3.2078,4419.6,4419.1,0.5583]
[1757512307040,3.4988,4419.6,4419.1,0.5583]
[1757512307443,3.4988,4419.6,4419.0,0.1922]
[1757512307943,3.4988,4419.6,4419.1,0.5583]
[1757512308747,3.2078,4421.5,4420.5,0.2145]
[1757512309043,1.67305298,4423.0,4420.5,0.2145]
[1757512309044,3.2078,4420.9,4420.5,0.2145]
[1757512309244,0.29,4420.8,4420.5,0.2145]
[1757512309443,4.29,4420.8,4420.5,0.2145]
[1757512309840,0.29,4420.8,4420.6,0.5583]
[1757512310443,4.0,4420.7,4420.0,0.5583]
[1757512310647,3.2078,4420.1,4420.0,0.5583]
[1757512310940,3.4978,4420.1,4420.0,0.5583]
[1757512311737,3.4978,4420.1,4419.1,0.2145]
[1757512311738,7.4978,4420.1,4419.1,0.2145]
[1757512311940,3.2078,4419.2,4419.1,0.2145]
[1757512312136,3.4968,4419.2,4419.1,0.2145]
[1757512313046,3.4968,4419.2,4419.1,0.7728]
[1757512313244,7.4968,4419.2,4419.1,0.7728]
[1757512313446,7.4968,4419.2,4419.1,0.2145]
[1757512313647,7.4968,4419.2,4419.1,0.7728]
[1757512313837,7.4968,4419.2,4419.1,0.2145]
[1757512314042,7.4968,4419.2,4418.5,0.5583]
[1757512314349,3.2078,4418.6,4418.5,0.5583]
[1757512314645,3.4958,4418.6,4418.5,0.5583]
[1757512315548,3.4958,4418.6,4417.7,0.2145]
[1757512315549,8.00876012,4418.6,4417.9,0.5583]
[1757512315851,3.2078,4418.0,4417.9,0.5583]
[1757512316042,3.4958,4418.0,4417.9,0.5583]
[1757512316244,3.4958,4418.0,4417.7,0.2145]
[1757512316647,3.4958,4418.0,4417.8,0.5583]
[1757512316943,0.288,4417.9,4417.7,0.7728]
[1757512317143,0.288,4417.9,4417.2,0.5583]
[1757512317353,3.2078,4417.3,4417.2,0.5583]
[1757512317546,3.4948,4417.3,4417.2,0.5583]
[1757512317843,3.4948,4417.3,4417.1,0.5583]
[1757512318050,3.4948,4417.3,4417.0,0.2145]
[1757512318251,3.4948,4417.3,4417.1,0.5583]
[1757512318745,3.4948,4417.3,4417.0,0.2145]
[1757512319243,3.4948,4417.3,4417.1,0.5583]
[1757512320750,3.4948,4417.3,4417.0,0.2145]
[1757512320944,3.4948,4417.3,4417.1,0.5583]
[1757512321142,3.4948,4417.3,4417.0,0.2145]
[1757512321342,3.4948,4417.3,4417.1,0.5583]
[1757512321546,3.2078,4417.3,4417.0,0.2145]
[1757512321847,3.2078,4417.3,4417.2,0.5583]
[1757512322045,32.604,4419.4,4417.2,0.5583]
[1757512322046,0.286,4417.8,4417.2,0.5583]
[1757512322242,3.2078,4417.9,4417.8,0.7728]
[1757512322549,0.286,4418.3,4417.8,0.2145]
[1757512322751,3.2078,4418.4,4417.9,0.5583]
[1757512322945,3.2078,4419.2,4419.1,0.5583]
[1757512323451,3.2078,4419.2,4419.1,4.5583]
[1757512323950,32.605,4421.3,4419.1,4.0]
[1757512323951,0.285,4419.9,4419.1,4.0]
[1757512324257,3.2078,4421.2,4420.8,0.2145]
[1757512324446,3.2078,4421.2,4420.9,0.5583]
[1757512324647,3.2078,4421.2,4420.8,0.2145]
[1757512324841,3.2078,4421.2,4420.9,0.5583]
[1757512325046,0.285,4421.1,4420.9,0.5583]
[1757512325750,0.51176196,4421.0,4420.8,0.2145]
[1757512325952,0.285,4420.9,4420.8,0.7728]
[1757512326349,4.285,4420.9,4420.8,0.7728]
[1757512326549,4.285,4420.9,4420.8,0.2145]
[1757512326944,4.80750564,4420.9,4419.5,0.5583]
[1757512327252,3.2078,4419.7,4419.6,0.7728]
[1757512327643,3.4928,4419.7,4419.6,0.7728]
[1757512328452,3.2078,4419.7,4419.6,0.7728]
[1757512328642,24.3,4421.8,4419.6,0.7728]
[1757512328643,3.2078,4420.3,4419.7,0.5583]
[1757512328850,3.2078,4420.3,4420.2,0.7728]
[1757512329051,3.4918,4420.3,4420.2,0.7728]
[1757512331156,3.2078,4420.3,4420.2,0.7728]
[1757512331557,3.2078,4420.9,4420.8,0.7728]
[1757512332156,0.283,4421.2,4420.8,4.7728]
[1757512332349,3.2078,4421.3,4420.8,0.7728]
[1757512332549,3.2078,4421.9,4421.3,0.5583]
[1757512332754,3.2078,4421.4,4421.3,0.5583]
[1757512333151,3.4908,4421.4,4421.3,0.5583]
[1757512333450,7.71698,4421.4,4420.3,0.5583]
[1757512333757,7.71698,4421.4,4418.4,0.2145]
[1757512333758,3.2078,4420.4,4418.4,0.2145]
[1757512334052,3.2078,4419.2,4418.7,0.40728]
[1757512334255,3.2078,4419.2,4418.4,0.2145]
[1757512334450,3.2078,4419.2,4418.9,0.40726]
[1757512334649,3.2078,4419.2,4418.6,3.2078]
[1757512334858,0.283,4419.8,4418.6,3.2078]
[1757512335162,3.2078,4419.3,4418.6,3.2078]
[1757512335649,3.2078,4419.3,4419.2,0.5275]
[1757512336052,0.282,4419.8,4419.2,0.5275]
[1757512336257,3.2078,4419.4,4419.2,0.5275]
[1757512336754,3.4898,4419.4,4418.6,3.2078]
[1757512336954,3.4898,4419.4,4418.6,0.5275]
[1757512336955,3.2078,4418.9,4418.6,0.5275]
[1757512337259,3.2078,4418.9,4418.5,0.5275]
[1757512337459,0.282,4419.0,4418.6,0.5275]
[1757512337655,3.2078,4419.4,4418.8,0.5275]
[1757512337656,0.282,4419.3,4418.8,0.5275]
[1757512337850,0.282,4419.3,4418.9,0.5275]
[1757512338052,3.2078,4419.4,4418.5,1.01826]
[1757512338262,3.2078,4419.4,4419.1,0.2162]
[1757512338454,3.2078,4419.4,4419.2,0.5275]
[1757512338648,3.2078,4419.4,4419.2,0.40724]
[1757512338854,0.281,4419.8,4419.4,0.5275]
[1757512339055,3.4888,4419.9,4419.4,0.5275]
[1757512339258,3.4888,4419.9,4419.2,0.93474]
[1757512339461,3.4888,4419.9,4419.2,0.5275]
[1757512339761,3.4888,4419.9,4419.6,0.4072]
[1757512339964,3.2078,4419.9,4419.8,0.7437]
[1757512341664,3.2078,4419.9,4419.8,0.5275]
[1757512341861,3.2078,4419.9,4419.2,0.5275]
[1757512342661,0.28,4419.8,4419.2,0.5275]
[1757512342865,3.2078,4419.4,4419.2,0.5275]
[1757512343163,3.2078,4419.4,4418.6,0.5275]
[1757512343368,3.2078,4418.9,4418.1,0.5275]
[1757512343561,3.2078,4418.4,4417.9,0.40736]
[1757512344163,3.2078,4418.4,4417.8,0.5275]
[1757512344360,3.2078,4418.4,4418.3,0.5275]
[1757512344762,0.279,4419.3,4418.9,0.5275]
[1757512344964,0.279,4419.3,4418.5,0.5275]
[1757512345558,3.2078,4419.0,4418.5,0.5275]
[1757512346266,3.2078,4419.0,4418.2,0.279]
[1757512346267,3.2078,4419.0,4418.3,0.5275]
[1757512346973,0.279,4419.1,4418.3,0.5275]
[1757512346974,3.2078,4418.5,4418.3,0.5275]
[1757512347176,3.2078,4418.5,4417.7,0.742]
[1757512348073,0.2109,4420.8,4418.3,3.2078]
[1757512348277,0.7841,4420.8,4420.7,0.4071]
[1757512348474,0.7841,4420.8,4420.7,0.6871]
[1757512348771,0.7841,4420.8,4420.7,2.97571862]
[1757512349073,0.5732,4420.7,4420.4,0.40713]
[1757512349469,0.5732,4420.7,4420.3,3.2078]
[1757512349668,0.2109,4420.8,4420.3,3.2078]
[1757512349971,0.2109,4420.8,4420.3,3.1978]
[1757512350574,0.2109,4420.8,4420.3,3.60494]
[1757512350774,0.5732,4420.6,4420.3,3.1978]
[1757512351084,0.5732,4420.6,4419.4,0.40722]
[1757512351274,0.5732,4420.6,4419.6,0.4072]
[1757512351474,3.4878,4420.7,4419.2,3.2078]
[1757512351475,0.5732,4420.1,4419.2,3.2078]
[1757512351771,3.2078,4420.2,4419.2,3.61503]
[1757512351772,0.7841,4419.8,4419.2,3.61503]
[1757512351974,0.5732,4419.8,4419.6,0.4072]
[1757512352172,0.5732,4420.7,4419.7,0.40719]
[1757512352382,0.279,4420.6,4419.5,0.40721]
[1757512352770,0.5732,4420.7,4419.8,3.2078]
[1757512352972,0.279,4420.5,4419.8,3.2078]
[1757512353269,0.279,4420.5,4419.9,0.40718]
[1757512353572,0.5732,4420.2,4418.6,3.2078]
[1757512353780,0.5732,4420.2,4419.1,0.40725]
[1757512353979,0.5732,4420.2,4419.2,0.40724]
[1757512354169,0.22628,4420.1,4418.6,3.2078]
[1757512354370,0.5732,4419.0,4418.2,3.2078]
[1757512354572,0.5732,4419.0,4417.5,3.2078]
[1757512354772,0.5732,4418.5,4417.5,3.61519]
[1757512355174,3.2078,4418.1,4417.0,3.2078]
[1757512355373,3.2078,4417.6,4416.6,0.5275]
[1757512355785,3.2078,4417.6,4416.6,0.93497]
[1757512355786,0.278,4417.5,4416.6,0.93497]
[1757512356081,0.278,4417.5,4416.8,0.40745]
[1757512356383,0.278,4417.5,4416.6,0.5275]
[1757512356774,0.278,4417.5,4416.5,3.2078]
[1757512356970,0.278,4417.5,4416.6,0.40748]
[1757512357175,0.278,4417.5,4416.5,3.2078]
[1757512357576,0.278,4417.5,4416.7,0.40747]
[1757512357776,0.278,4417.5,4417.0,0.40744]
[1757512357977,0.278,4417.5,4416.5,3.2078]
[1757512357978,3.2078,4417.6,4417.2,0.40742]
[1757512358273,3.781,4417.6,4417.2,0.40742]
[1757512358580,3.2078,4417.6,4417.1,0.40743]
[1757512358778,0.278,4417.8,4417.1,3.2078]
[1757512359882,0.5732,4417.7,4416.7,0.5275]
[1757512360081,3.781,4417.7,4416.7,0.5275]
[1757512360383,3.2078,4417.1,4416.0,3.7353]
[1757512360577,0.5732,4416.9,4416.0,3.2078]
[1757512360773,3.2078,4417.1,4416.9,0.40744]
[1757512360974,0.5732,4417.5,4416.7,3.2078]
[1757512361485,0.5732,4417.5,4416.7,0.40747]
[1757512361681,0.5732,4417.4,4416.2,3.2078]
[1757512361979,0.5732,4416.9,4415.7,0.40756]
[1757512362180,0.8512,4416.9,4415.7,0.40756]
[1757512362378,0.5732,4416.8,4415.6,3.61536]
[1757512362578,0.5732,4416.8,4415.6,3.2078]
[1757512362778,0.5732,4416.4,4415.6,3.2078]
[1757512363081,0.5732,4415.9,4415.0,35.7998]
[1757512363282,0.5732,4415.9,4414.9,3.61543]
[1757512363786,0.5732,4415.9,4414.9,3.2078]
[1757512363984,0.5688,4415.9,4414.9,3.2078]
[1757512364689,0.8468,4415.9,4415.6,0.40757]
[1757512364883,0.5688,4416.5,4415.5,0.5721]
[1757512365084,0.278,4417.3,4416.5,0.40748]
[1757512365287,0.5688,4416.9,4415.5,2.89007164]
[1757512365587,0.5688,4416.9,4414.2,3.83169]
[1757512365588,0.5688,4415.5,4414.5,0.40767]
[1757512365787,0.278,4415.4,4414.3,0.40769]
[1757512365988,0.278,4415.4,4414.2,3.2078]
[1757512365989,3.2078,4415.0,4414.2,3.2078]
[1757512366382,3.2078,4415.0,4414.1,0.97981]
[1757512366383,3.7766,4415.0,4414.1,0.97981]
[1757512366586,3.7766,4415.0,4414.1,0.5721]
[1757512366785,3.7766,4415.0,4413.8,0.278]
[1757512366983,3.2078,4414.5,4413.7,0.97985]
[1757512367179,0.278,4414.9,4412.8,0.1722243]
[1757512367180,3.2078,4413.9,4412.8,0.7443243]
[1757512367386,3.4858,4413.9,4412.8,1.1521543]
[1757512367690,0.2265,4413.8,4412.8,0.7443243]
[1757512367885,0.5688,4413.7,4412.8,0.1722243]
[1757512368091,3.2078,4413.4,4412.8,0.1722243]
[1757512368288,0.5688,4412.7,4411.3,0.5721]
[1757512368495,3.2078,4412.2,4411.3,0.98007]
[1757512368689,3.2078,4413.2,4412.1,0.40789]
[1757512368894,3.2078,4413.2,4412.1,0.5721]
[1757512369191,3.4858,4413.2,4412.1,0.5721]
[1757512369382,3.2078,4413.2,4412.4,0.40787]
[1757512369590,3.2078,4413.2,4412.8,0.5721]
[1757512369788,4.0031,4413.8,4412.8,0.5721]
[1757512369993,4.0031,4413.8,4412.8,0.97993]
[1757512370194,4.0031,4413.8,4412.8,0.5721]
[1757512370488,0.278,4413.7,4412.7,3.2078]
[1757512370696,3.2078,4413.3,4412.2,3.2078]
[1757512370890,3.2078,4413.3,4412.5,0.40785]
[1757512371091,0.5045,4413.8,4412.8,0.5721]
[1757512371292,0.2265,4413.8,4413.0,0.40781]
[1757512371498,0.2265,4413.8,4413.1,0.4078]
[1757512371695,0.2265,4413.8,4412.9,2.9174616]
[1757512372091,3.2078,4413.6,4412.8,0.8501]
[1757512372292,3.2078,4413.6,4413.1,0.4078]
[1757512372487,3.2078,4413.6,4413.2,0.5721]
[1757512372691,0.2265,4413.8,4413.7,0.97985]
[1757512372897,0.2265,4413.8,4413.7,4.18765]
[1757512373192,0.2265,4413.8,4413.7,8.18765]
[1757512373498,0.225,4416.3,4414.2,0.5721]
[1757512373499,3.2078,4415.4,4414.2,0.5721]
[1757512373694,3.2078,4415.4,4415.0,0.40763]
[1757512373896,3.2078,4415.4,4414.5,0.5721]
[1757512374501,3.7766,4415.5,4414.5,0.5721]
[1757512374892,3.7766,4415.5,4414.6,0.40766]
[1757512375198,3.7766,4415.5,4414.6,2.90308604]
[1757512375388,3.7766,4415.5,4414.5,0.8501]
[1757512375796,3.7766,4415.5,4414.9,0.40763]
[1757512375991,0.5688,4415.5,4414.5,0.8501]
[1757512376296,3.7766,4415.5,4414.6,0.5721]
[1757512376594,3.7766,4415.5,4414.6,3.56582126]
[1757512376796,3.4858,4416.0,4415.5,0.40758]
[1757512377098,0.5688,4415.9,4415.5,0.5721]
[1757512377493,3.2078,4416.0,4415.6,0.5721]
[1757512377693,0.5688,4415.9,4414.7,0.278]
[1757512377895,3.7766,4415.3,4414.7,0.278]
[1757512378690,3.7766,4415.3,4414.6,0.40766]
[1757512379001,3.7766,4415.3,4414.9,0.40763]
[1757512379201,3.7766,4415.3,4414.9,0.97973]
[1757512379500,3.7766,4415.3,4414.5,3.2078]
[1757512379692,3.7766,4415.3,4414.5,4.22699]
[1757512380002,3.2078,4415.3,4414.8,0.97974]
[1757512380297,3.2078,4415.3,4414.5,3.2078]
[1757512380298,0.5688,4415.2,4414.5,3.4858]
[1757512380494,0.5688,4415.2,4414.5,3.2078]
[1757512380695,3.2078,4415.3,4414.6,0.5721]
[1757512381095,3.2078,4415.3,4414.8,0.40765]
[1757512381396,3.2078,4415.3,4414.7,0.5721]
[1757512381597,3.7766,4415.3,4414.2,0.4077]
[1757512381798,3.7766,4415.3,4414.3,0.278]
[1757512381997,3.7766,4415.3,4414.0,3.2078]
[1757512381998,0.5688,4414.7,4414.0,3.2078]
[1757512382302,0.5688,4414.6,4413.5,3.4858]
[1757512382599,3.2078,4413.8,4413.4,0.278]
[1757512383203,0.5688,4413.7,4412.9,0.68582]
[1757512383404,3.2078,4413.3,4412.0,0.5721]
[1757512383601,3.7766,4413.3,4412.8,0.40784]
[1757512383793,0.5688,4413.2,4412.8,0.40784]
[1757512383997,0.278,4413.7,4413.2,0.4078]
[1757512384197,0.8468,4413.7,4413.1,0.5721]
[1757512384397,0.8468,4413.7,4413.2,0.4078]
[1757512384607,0.278,4413.7,4413.3,0.40779]
[1757512384807,0.5688,4413.7,4413.2,0.4078]
[1757512384999,3.7766,4414.3,4413.5,3.2078]
[1757512385305,3.7766,4414.8,4413.7,1.0194]
[1757512385610,3.7766,4414.8,4414.1,0.40771]
[1757512386098,3.7766,4414.8,4413.8,0.5721]
[1757512386298,4.0016,4414.8,4413.9,0.278]
[1757512386504,3.2078,4414.8,4413.9,3.18688434]
[1757512386803,3.7766,4415.4,4414.7,0.5721]
[1757512387000,4.0016,4415.4,4414.2,3.2078]
[1757512387205,4.0016,4415.4,4414.4,0.40768]
[1757512387403,4.0016,4415.4,4414.5,0.40768]
[1757512387708,4.0016,4415.4,4414.3,0.278]
[1757512388007,4.0016,4415.4,4414.5,0.40768]
[1757512388194,3.7766,4415.4,4414.5,0.5721]
[1757512388399,3.7766,4415.4,4414.6,3.24305917]
[1757512388594,3.2078,4415.4,4415.3,0.5721]
[1757512388799,0.5688,4416.0,4415.3,1.2577]
[1757512389002,0.5688,4416.0,4415.4,0.40759]
[1757512389200,0.5688,4416.0,4415.3,3.77616801]
[1757512389400,0.5688,4416.0,4415.5,2.92606801]
[1757512389597,3.4328,4416.6,4415.5,0.5721]
[1757512389908,3.2078,4416.1,4415.6,0.278]
[1757512390294,0.5688,4416.0,4415.6,0.278]
[1757512390700,0.225,4416.0,4415.2,3.2078]
[1757512390902,0.5688,4415.9,4415.1,0.278]
[1757512391200,0.225,4416.0,4414.5,0.40768]
[1757512391201,0.5688,4415.5,4414.5,0.40768]
[1757512391399,0.225,4415.4,4414.6,0.68467]
[1757512391698,0.225,4415.4,4414.5,0.40768]
[1757512391699,0.5688,4415.3,4414.5,0.40768]
[1757512391904,0.5688,4415.3,4414.2,33.2001]
[1757512392095,0.5688,4415.0,4414.3,3.25234566]
[1757512392301,0.225,4415.4,4413.0,1.24206]
[1757512392302,3.2078,4414.5,4413.1,0.5721]
[1757512392600,0.225,4414.8,4412.9,3.2078]
[1757512392601,0.5688,4413.8,4412.9,3.2078]
[1757512393001,0.5688,4413.8,4412.7,0.68485]
[1757512393503,0.5688,4413.8,4413.0,0.40781]
[1757512393699,0.5688,4413.8,4412.3,3.7799]
[1757512393904,0.6101,4413.8,4412.3,3.7799]
[1757512394103,0.6101,4413.8,4412.3,6.71076578]
[1757512394295,3.2078,4413.9,4412.3,3.7799]
[1757512394500,0.6101,4413.2,4412.3,4.18778]
[1757512394697,0.225,4414.2,4412.3,4.18778]
[1757512394698,0.6101,4415.9,4414.8,1.01914]
[1757512394903,0.6101,4415.9,4415.8,3.2078]
[1757512395101,0.6101,4415.9,4415.4,0.277]
[1757512395407,0.8537,4415.4,4415.3,3.2078]
[1757512395805,0.8537,4415.4,4415.3,6.514616]
[1757512396008,0.8537,4416.0,4415.9,0.40755]
[1757512396199,0.8537,4416.0,4415.9,4.21371945]
[1757512397005,0.8537,4416.0,4415.9,3.52916945]
[1757512397198,0.8537,4416.0,4415.9,3.2078]
[1757512397406,0.8537,4416.0,4415.9,3.52892995]
[1757512398499,0.8537,4416.0,4415.9,0.32112995]
[1757512399302,0.2436,4415.4,4414.8,0.277]
[1757512399497,0.8537,4415.4,4415.1,3.2078]
[1757512399709,0.6101,4415.3,4415.1,3.2078]
[1757512400102,0.2436,4415.4,4415.3,0.40761]
[1757512400405,0.6101,4415.9,4415.1,3.2078]
[1757512400600,0.6101,4415.3,4415.1,3.2078]
[1757512400800,0.6101,4415.8,4415.2,2.98523523]
[1757512401101,0.2436,4416.0,4415.6,3.2078]
[1757512401308,0.6101,4415.9,4415.6,3.2078]
[1757512401607,0.2436,4416.0,4415.6,3.2078]
[1757512402200,0.2436,4416.0,4415.8,0.40756]